{"text_format":"1","workbook":"xlsx","n_sheets":4,"sheets":["instructies","checklist huidige situatie","overzicht - aanzet acties","overzicht - aanzet acties (2)"],"not_rendered":{"charts":10,"images":3,"macros":0,"external_links":0,"defined_names":17,"comments":0,"pivot_tables":0},"unopened":[],"bounds":{"document_bytes":16777216,"sheet_cells":100000,"rows_first":2000,"rows_last":500,"rows_between":2000,"halvings":0,"cell_chars":16384,"cell_head_chars":4096},"cells_cut":0,"cells_raw":0,"read":"whole","date_system":"1900"}

{"sheet":"instructies","index":0,"n_rows":14,"n_cols":1,"rows_kept":14,"cut":false,"hidden":false,"merged":[]}
[]
[]
["Waarom deze checklist?"]
["Deze checklist helpt u een eerste inschatting te maken van het verkeersveiligheidsbeleid in uw bedrijf."]
[]
["Hoe gaat u hiervoor tewerk?"]
[]
["1/ Op het gele tabblad vult u de checklist in. Deze peilt naar de huidige situatie in uw bedrijf. "]
["Om te resetten: selecteer kolom H en kies \"Inhoud Wissen\" (of “Clear Contents”) om alle vinkjes weg te halen."]
[]
["2/ Op het groene tabblad krijgt u vervolgens een overzicht van de beginsituatie en de mogelijke verbeterpunten in uw bedrijf."]
["Dit tabblad is zo ingesteld dat u alle elementen kunt afprinten in de vorm van een handige nota."]
[]
["NB : De huidige checklist werd ontwikkeld door VSV (Vlaamse Stichting Verkeerskunde)"]

{"sheet":"checklist huidige situatie","index":1,"n_rows":92,"n_cols":8,"rows_kept":92,"cut":false,"hidden":false,"merged":[[34,8,39,11]]}
["Toelichting - We onderscheiden drie luiken in het verkeersveiligheidbeleid van een onderneming:"]
["Luik 1 - beschikbaarheid van data"]
["Luik 2 - risicofactoren"]
["Luik 3 - visie en bestaande maatregelen"]
["Binnen elk luik stellen we een aantal vragen. Duid voor elke vraag het meest passende antwoord aan."]
[]
["LUIK 1 - BESCHIKBAARHEID DATA"]
["D1 - beschikbaarheid data",null,"omschrijving","ja","neen","weet niet","nvt"]
[null,"D1.1 verkeersongevallencijfers","Beschikt uw bedrijf over een databank met verkeersongevallencijfers?"]
[null,"D1.2 verplaatsingswijze","Beschikt uw bedrijf over een databank met informatie over de vervoermiddelen die de werknemers gebruiken voor woon-werkverkeer (incl. voor- en natransport)?"]
[null,"D1.3 verkeersovertredingen","Beschikt uw bedrijf over een databank waar gegevens over boetes voor verkeersovertredingen (snelheid en andere) worden bijgehouden? "]
[null,"D1.4 dienstverplaatsingen","Heeft uw bedrijf een overzicht van het aantal dienstverplaatsingen, opgesplitst per vervoermiddel (fiets, openbaar vervoer, auto)?"]
[null,"D1.5 fietsroutes woon-werkverkeer","Heeft uw bedrijf zicht op de fietsroutes die personeelsleden gebruiken voor woon-werkverkeer?"]
[null,"D1.6 fietsroutes dienstverplaatsingen","Heeft uw bedrijf zicht op de fietsroutes die personeelsleden gebruiken voor dienstverplaatsingen?"]
[null,"D1.7 helmdracht fietsers","Heeft uw bedrijf zicht op het percentage werknemers dat steeds een helm draagt bij het fietsen? "]
[null,"D1.8 fietsverlichting ","Heeft uw bedrijf zicht op het percentage werknemers dat beschikt over goed functionerende fietsverlichting? "]
[null,"D1.9 zichtbaarheid fietsers","Heeft uw bedrijf zicht op het percentage werknemers dat steeds of bij beperkte zichtbaarheid fluoreflecterend materiaal draagt bij het fietsen? "]
[null,"D1.10 gordeldracht auto-inzittenden","Heeft uw bedrijf zicht op het percentage werknemers dat voor- en achterin de auto altijd een veiligheidsgordel draagt? "]
[null,"D1.11 helmdracht motorrijders en bromfietsers","Heeft uw bedrijf zicht op het percentage werknemers dat een steeds helm draagt bij het rijden met de motor of bromfiets? "]
[]
["LUIK 2 - RISICOFACTOREN"]
["R1 - risicofactoren algemeen",null,null,"ja","neen","weet niet","nvt"]
[null,"R1.1 gevaarlijke punten","Zijn er in de omgeving van uw bedrijf gevaarlijke punten waar in het verleden één of meerdere ongevallen plaatsvonden?",null,null,null,null,0]
["R2- risicofactoren voetgangers",null,null,"ja","neen","weet niet","nvt"]
[null,"R2.1  gevaarlijke punten in omgeving","Zijn er knelpunten in de omgeving die een potentieel gevaarlijke situatie opleveren voor voetgangers (gevaarlijke kruispunten, afwezigheid van infrastructuur,…)? "]
[null,"R2.1  gevaarlijke punten op eigen terrein","Zijn er knelpunten op het eigen terrein die een potentieel gevaarlijke situatie opleveren voor voetgangers (gevaarlijke kruispunten, afwezigheid van infrastructuur,…)? "]
[null,"R2.2  gevaarlijke punten route openbaar vervoerhalte","Zijn er knelpunten voor voetgangers op de looproute tussen de openbaarvervoerhalte en de bedrijfssite?"]
["R3 - risicofactoren fietsers",null,null,"ja","neen","weet niet","nvt"]
[null,"R3.1 knelpunten op fietsroutes ","Zijn er knelpunten op de fietsroutes van werknemers?",null,null,null,null,0]
[null,"R3.2 knelpunten op fietsroutes dienstverplaatsingen","Zijn er gevaarlijke punten op routes voor dienstverplaatsingen die frequent worden gebruikt door fietsers?"]
[null,"R3.3 knelpunten op eigen terrein","Zijn er knelpunten op het eigen terrein waar potentieel gevaarlijke situaties ontstaan voor fietsers?"]
[null,"R3.4 helmdracht fietsers","Draagt slechts een minderheid van de fietsende werknemers een helm?"]
[null,"R3.5 zichtbaarheid fietsers","Draagt slechts een minderheid van de fietsende werknemers fluoreflecterend materiaal?"]
[null,"R3.6 fietsverlichting","Zijn er medewerkers met een gebrekkige fietsverlichting?"]
[null,"R3.7 racefiets of elektrische fiets","Zijn er werknemers die zich naar het werk verplaatsen met een racefiets of een elektrische fiets?"]
["R4- risicofactoren motorrijders en bromfietsers",null,null,"ja","neen","weet niet","nvt"]
[null,"R4.1 motor- en bromfietsgebruik","Zijn er werknemers die in het woon-werkverkeer of bij dienstverplaatsingen de motor of de bromfiets gebruiken? "]
["R5- risicofactoren automobilisten",null,null,"ja","neen","weet niet","nvt"]
[null,"R5.1 snelheidsovertredingen","Zijn er personeelsleden die het laatste jaar 2 of meer boetes voor snelheidsovertredingen kregen? "]
[null,"R5.2 andere overtredingen","Zijn er buiten snelheidsovertredingen nog andere overtredingen die regelmatig voorkomen (bv. niet-handenvrij bellen, roodlichtnegatie, …)?"]
[null,"R5.3 risicovol rijgedrag","Zijn er personeelsleden waarvan geweten is dat ze vaak snel rijden of een risicovol rijgedrag hebben?"]
[null,"R5.4 gordeldracht","Zijn er onder uw personeelsleden autobestuurders of passagiers die soms geen veiligheidsgordel dragen? "]
[null,"R5.5 rijden onder invloed van alcohol","Zijn er onder uw personeelsleden autobestuurders waarvan geweten is dat ze soms rijden onder invloed van alcohol?"]
[null,"R5.6 rijden onder invloed van drugs of medicijnen","Zijn er onder uw personeelsleden autobestuurders waarvan geweten is dat ze soms rijden onder invloed van drugs of rijgevaarlijke medicijnen?"]
[null,"R5.7 gsm/smartphone-gebruik","Zijn er onder uw personeelsleden autobestuurders waarvan geweten is dat ze soms hun gsm gebruiken tijdens het rijden (telefoneren, sms'en …)?"]
[null,"R5.8 verwachtingen gsm/smartphone-gebruik","Verwacht uw bedrijf dat werknemers ook achter het stuur permanent telefonisch bereikbaar zijn en / of zelf gesprekken voeren (met handenvrije kit)?"]
[null,"R5.9 lange woon-werk verplaatsingen","Zijn er personeelsleden die zeer lange woon-werkverplaatsingen met de auto maken?"]
[null,"R5.10 frequente dienstverplaatsingen","Worden er in uw bedrijf frequent dienstverplaatsingen gemaakt met de auto?"]
[null,"R5.11 lange dienstverplaatsingen","Worden er in uw bedrijf regelmatig lange dienstverplaatsingen gemaakt met de auto?"]
[null,"R5.12 vroege of late dienstverplaatsingen","Worden er in uw bedrijf dienstverplaatsingen met de auto gemaakt op zeer vroege of heel late uren?"]
["R6- risicofactoren vrachtvervoer",null,null,"ja","neen","weet niet","nvt"]
[null,"R6.1 frequente leveringen door bedrijf","Voert uw bedrijf frequent vrachtwagenleveringen uit?"]
[null,"R6.2 frequente leveringen aan bedrijf","Zijn er vaak leveringen aan uw bedrijf?"]
[null,"R6.3 vrachtwagenroutes","Moeten de vrachtwagens van uw bedrijf of van leveranciers gebruik maken van wegen die minder geschikt zijn voor vrachtwagenverkeer omdat er een confrontatie is met kwetsbare weggebruikers?"]
[]
["LUIK 3 - VISIE EN BESTAANDE MAATREGELEN"]
["M1 - visie en strategie",null,null,"ja","neen","weet niet","nvt"]
[null,"M1.1 verkeersveiligheidsplan","Heeft uw bedrijf een verkeersveiligheidsbeleid of -plan, al dan niet geïntegreerd in het Globaal Preventieplan?"]
[null,"M1.2 verkeersveiligheidscultuur","Is er een verkeersveiligheidscultuur in uw bedrijf? "]
[null,"M1.3 European Road Safety Charter","Ondertekende uw bedrijf het European Road Safety Charter?"]
[null,"M1.4 bekendheid van charter en beleid","Zijn de medewerkers op de hoogte van eventuele gedragscodes i.v.m. veilig rijgedrag?"]
[null,"M1.5 vermijden van verplaatsingen","Bestaat er in uw bedrijf een beleid i.v.m. het vermijden van verplaatsingen? Wordt er nagedacht over de noodzaak van verplaatsingen en het gebruik van nieuwe media (teleconferencing, thuiswerk ...)?"]
[null,"M1.6 veiligheid eigen site","Heeft uw bedrijf aandacht voor de verkeersveiligheid op de eigen site?"]
[null,"M1.7 gebruik van openbaar vervoer","Moedigt uw bedrijf het gebruik van het openbaar vervoer aan?"]
["M2 - maatregelen voetgangers",null,null,"ja","neen","weet niet","nvt"]
[null,"M2.1 voetgangersroutes","Heeft uw bedrijf aandacht voor de verkeersveiligheid op belangrijke voetgangersroutes bv. tussen openbaar vervoer en uw bedrijf of op de eigen site?"]
[null,"M2.2 verkeersgedrag voetgangers","Heeft uw bedrijf aandacht voor het verkeersgedrag van voetgangers bv. te volgen routes of zichtbaarheid?"]
["M3 - maatregelen fiets",null,null,"ja","neen","weet niet","nvt"]
[null,"M3.1 fietscontrole","Controleerde uw bedrijf het afgelopen jaar de staat van de fietsen?"]
[null,"M3.2 fietsaccesoires","Voorziet uw bedrijf fietsattributen die de verkeersveiligheid verhogen: helm en fluoreflecterend materiaal?"]
[null,"M3.3 fietsenstalling","Beschikt uw bedrijf over een goede, beveiligde fietsenstalling?"]
[null,"M3.4 fietsrouteadvies","Geeft uw bedrijf fietsroute-advies aan de fietsende werknemers?"]
[null,"M3.5 opleiding veilig fietsen","Organiseerde uw bedrijf het laatste jaar een cursus veilig fietsen voor de fietsende werknemers?"]
["M4 - maatregelen motor en bromfiets",null,null,"ja","neen","weet niet","nvt"]
[null,"M4.1 cursus defensief rijden","Organiseerde uw bedrijf het laatste jaar een opleiding defensief rijden voor de motorrijders?"]
[null,"M4.2 helmdracht","Stimuleert uw bedrijf helmdracht en het gebruik van een integraalhelm (die het hoofd helemaal omsluit)?"]
[null,"M4.3 uitrusting en kledij","Heeft uw bedrijf aandacht voor de uitrusting en kledij van de motorrijders en bromfietsers?"]
["M5 - maatregelen auto",null,null,"ja","neen","weet niet","nvt"]
[null,"M5.1 gedragscode","Beschikt uw bedrijf over een gedragscode voor autobestuurders (GSM/smartphone-gebruik, snelheid, gordeldracht, alcoholgebruik …)?"]
[null,"M5.2 opvolging nieuwe medewerkers","Wordt het rijgedrag van nieuwe medewerkers van nabij opgevolgd?"]
[null,"M5.3 hands-free kits","Zijn de bedrijfs- of dienstwagens voorzien van kits voor handenvrij bellen?"]
[null,"M5.4 responsabilisering","Worden medewerkers die een verkeersovertreding hebben begaan, geresponsabiliseerd?"]
[null,"M5.5 bedrijfsfeestjes","Heeft uw bedrijf aandacht voor de problematiek van rijden onder invloed bij bedrijfsfeestjes of bedrijfslunches?"]
[null,"M5.6 fleet management","Heeft uw bedrijf aandacht voor verkeersveiligheid in het fleet management (keuze van voertuigen, onderhoud, winterbanden, passieve veiligheidsuitrusting)"]
[null,"M5.7 cursus defensief rijden","Organiseerde uw bedrijf het voorbije jaar een cursus defensief rijden voor autobestuurders?"]
[null,"M5.8 overnachtingen","Is uw bedrijf bereid een overnachting te betalen eerder dan de werknemer een lange, late rit naar huis te laten maken?"]
["M6 - maatregelen vrachtvervoer",null,null,"ja","neen","weet niet","nvt"]
[null,"M6.1 gedragscode vrachtwagenbestuurders","Beschikt uw bedrijf over een gedragscode voor vrachtwagenbestuurders?"]
[null,"M6.2 technische mogelijkheden","Zijn vrachtwagens voorzien van de laatste technische ontwikkelingen die de veiligheid kunnen verbeteren?"]
[null,"M6.3 rijplanning","Maakt uw bedrijf er werk van de rijplanning niet te overladen?"]
[null,"M6.4 Truckveilig-charter","Ondertekende uw bedrijf het Truckveilig-charter? (www.truckveilig.be)"]
[null,"M6.5 rij-en rusttijden","Worden vrachtwagenchauffeurs gestimuleerd om de rij- en rusttijden te respecteren? "]

{"sheet":"overzicht - aanzet acties","index":2,"n_rows":60,"n_cols":29,"rows_kept":60,"cut":false,"hidden":false,"merged":[[43,10,43,16],[41,10,41,16],[42,10,42,17],[44,10,44,16],[25,21,25,27],[26,21,26,27],[27,21,27,27],[37,21,37,28],[29,21,29,27],[30,21,30,27],[33,21,33,27],[36,21,36,27],[32,21,32,28],[38,21,38,27],[39,21,39,27],[40,21,40,27],[24,10,24,16],[28,10,28,16],[27,10,27,16],[24,21,24,28],[1,1,1,6],[1,10,1,17],[1,21,1,28],[21,1,21,6],[21,10,21,17],[21,21,21,28],[28,21,28,27],[42,21,42,27],[44,21,44,27],[43,21,43,28],[46,21,46,27],[47,21,47,27],[49,21,49,27],[50,21,50,27],[51,21,51,28],[48,21,48,27],[59,21,59,27],[52,21,52,27],[55,21,55,27],[57,21,57,27],[58,21,58,27],[53,21,53,28],[56,21,56,28],[55,10,55,17],[36,10,36,16],[23,1,23,5],[33,1,33,6],[32,1,32,6],[31,1,31,6],[30,1,30,6],[28,1,28,6],[27,1,27,6],[25,1,25,6],[29,1,29,6],[24,1,24,6],[33,10,33,16],[30,10,30,16],[26,10,26,16],[31,10,31,16],[54,10,54,16],[26,1,26,6],[38,10,38,16],[49,10,49,17],[50,10,50,17],[51,10,51,17],[53,10,53,16],[35,10,35,16],[34,10,34,16],[34,1,34,6],[32,10,32,16],[45,10,45,16],[46,10,46,16],[47,10,47,17],[48,10,48,17],[40,10,40,16]]}
[null,"Dataverzameling",null,null,null,null,null,null,null,null,"Risicofactoren",null,null,null,null,null,null,null,null,null,null,"Maatregelen"]
[null,"Hierbij krijgt u een overzicht van de dataverzameling inzake verkeersveiligheid van uw bedrijf",null,null,null,null,null,null,null,null,"Hierbij krijgt u een overzicht van de aan- en afwezigheid van risicofactoren betreffende verkeersveiligheid voor de verschillende vervoermiddelen in uw bedrijf",null,null,null,null,null,null,null,null,null,null,"Hierbij krijgt u een overzicht van welke maatregelen betreffende verkeersveiligheid er in uw bedrijf genomen worden en welke er nog kunnen genomen worden."]
["Legende",null,null,null,null,null,null,null,null,"Legende",null,"alg.","voet-gangers","fiets","motor / bromfiets","auto","vracht","totaal",null,null,"Legende",null,"visie","voet-gangers","fiets","motor / bromfiets","auto","vracht","totaal"]
["■","wordt verzameld",{"$f":"COUNTIF('checklist huidige situatie'!H$9:H$19,1)","v":0},null,null,null,1,null,null,"■","aanwezig",{"$f":"COUNTIF('checklist huidige situatie'!H$23:H$23,$G4)","v":0},{"$f":"COUNTIF('checklist huidige situatie'!H$25:H$27,$G4)","v":0},{"$f":"COUNTIF('checklist huidige situatie'!H$29:H$35,$G4)","v":0},{"$f":"COUNTIF('checklist huidige situatie'!H$37:H$37,$G4)","v":0},{"$f":"COUNTIF('checklist huidige situatie'!H$39:H$50,$G4)","v":0},{"$f":"COUNTIF('checklist huidige situatie'!H$52:H$54,$G4)","v":0},{"$f":"SUM(L4:Q4)","v":0},null,null,"■","aanwezig",{"$f":"COUNTIF('checklist huidige situatie'!$H$58:$H$64,$G4)","v":0},{"$f":"COUNTIF('checklist huidige situatie'!$H$66:$H$67,$G4)","v":0},{"$f":"COUNTIF('checklist huidige situatie'!$H$69:$H$73,$G4)","v":0},{"$f":"COUNTIF('checklist huidige situatie'!$H$75:$H$77,$G4)","v":0},{"$f":"COUNTIF('checklist huidige situatie'!$H$79:$H$86,$G4)","v":0},{"$f":"COUNTIF('checklist huidige situatie'!$H$88:$H$92,$G4)","v":0},{"$f":"SUM(W4:AB4)","v":0}]
["□","wordt nog niet verzameld",{"$f":"COUNTIF('checklist huidige situatie'!H$9:H$19,2)","v":0},null,null,null,2,null,null,"□","afwezig",{"$f":"COUNTIF('checklist huidige situatie'!H$23:H$23,$G5)","v":0},{"$f":"COUNTIF('checklist huidige situatie'!H$25:H$27,$G5)","v":0},{"$f":"COUNTIF('checklist huidige situatie'!H$29:H$35,$G5)","v":0},{"$f":"COUNTIF('checklist huidige situatie'!H$37:H$37,$G5)","v":0},{"$f":"COUNTIF('checklist huidige situatie'!H$39:H$50,$G5)","v":0},{"$f":"COUNTIF('checklist huidige situatie'!H$52:H$54,$G5)","v":0},{"$f":"SUM(L5:Q5)","v":0},null,null,"□","afwezig",{"$f":"COUNTIF('checklist huidige situatie'!$H$58:$H$64,$G5)","v":0},{"$f":"COUNTIF('checklist huidige situatie'!$H$66:$H$67,$G5)","v":0},{"$f":"COUNTIF('checklist huidige situatie'!$H$69:$H$73,$G5)","v":0},{"$f":"COUNTIF('checklist huidige situatie'!$H$75:$H$77,$G5)","v":0},{"$f":"COUNTIF('checklist huidige situatie'!$H$79:$H$86,$G5)","v":0},{"$f":"COUNTIF('checklist huidige situatie'!$H$88:$H$92,$G5)","v":0},{"$f":"SUM(W5:AB5)","v":0}]
["?","weet niet",{"$f":"COUNTIF('checklist huidige situatie'!H$9:H$19,3)","v":0},null,null,null,3,null,null,"?","weet niet",{"$f":"COUNTIF('checklist huidige situatie'!H$23:H$23,$G6)","v":0},{"$f":"COUNTIF('checklist huidige situatie'!H$25:H$27,$G6)","v":0},{"$f":"COUNTIF('checklist huidige situatie'!H$29:H$35,$G6)","v":0},{"$f":"COUNTIF('checklist huidige situatie'!H$37:H$37,$G6)","v":0},{"$f":"COUNTIF('checklist huidige situatie'!H$39:H$50,$G6)","v":0},{"$f":"COUNTIF('checklist huidige situatie'!H$52:H$54,$G6)","v":0},{"$f":"SUM(L6:Q6)","v":0},null,null,"?","weet niet",{"$f":"COUNTIF('checklist huidige situatie'!$H$58:$H$64,$G6)","v":0},{"$f":"COUNTIF('checklist huidige situatie'!$H$66:$H$67,$G6)","v":0},{"$f":"COUNTIF('checklist huidige situatie'!$H$69:$H$73,$G6)","v":0},{"$f":"COUNTIF('checklist huidige situatie'!$H$75:$H$77,$G6)","v":0},{"$f":"COUNTIF('checklist huidige situatie'!$H$79:$H$86,$G6)","v":0},{"$f":"COUNTIF('checklist huidige situatie'!$H$88:$H$92,$G6)","v":0},{"$f":"SUM(W6:AB6)","v":0}]
["/","niet ingevuld",{"$f":"11-SUM(C4:C6,C8)","v":11},null,null,null,0,null,null,"/","niet ingevuld",{"$f":"1-SUM(L4:L6,L8)","v":1},{"$f":"3-SUM(M4:M6,M8)","v":3},{"$f":"7-SUM(N4:N6,N8)","v":7},{"$f":"1-SUM(O4:O6,O8)","v":1},{"$f":"12-SUM(P4:P6,P8)","v":12},{"$f":"2-SUM(Q4:Q6,Q8)","v":2},{"$f":"26-SUM(R4:R6,R8)","v":26},null,null,"/","niet ingevuld",{"$f":"7-SUM(W4:W6,W8)","v":7},{"$f":"2-SUM(X4:X6,X8)","v":2},{"$f":"5-SUM(Y4:Y6,Y8)","v":5},{"$f":"3-SUM(Z4:Z6,Z8)","v":3},{"$f":"8-SUM(AA4:AA6,AA8)","v":8},{"$f":"5-SUM(AB4:AB6,AB8)","v":5},{"$f":"30-SUM(AC4:AC6,AC8)","v":30}]
["x","niet van toepassing",{"$f":"COUNTIF('checklist huidige situatie'!H$9:H$19,4)","v":0},null,null,null,4,null,null,"x","niet van toepassing",{"$f":"COUNTIF('checklist huidige situatie'!H$23:H$23,$G8)","v":0},{"$f":"COUNTIF('checklist huidige situatie'!H$25:H$27,$G8)","v":0},{"$f":"COUNTIF('checklist huidige situatie'!H$29:H$35,$G8)","v":0},{"$f":"COUNTIF('checklist huidige situatie'!H$37:H$37,$G8)","v":0},{"$f":"COUNTIF('checklist huidige situatie'!H$39:H$50,$G8)","v":0},{"$f":"COUNTIF('checklist huidige situatie'!H$52:H$54,$G8)","v":0},{"$f":"SUM(L8:Q8)","v":0},null,null,"x","niet van toepassing",{"$f":"COUNTIF('checklist huidige situatie'!$H$58:$H$64,$G8)","v":0},{"$f":"COUNTIF('checklist huidige situatie'!$H$66:$H$67,$G8)","v":0},{"$f":"COUNTIF('checklist huidige situatie'!$H$69:$H$73,$G8)","v":0},{"$f":"COUNTIF('checklist huidige situatie'!$H$75:$H$77,$G8)","v":0},{"$f":"COUNTIF('checklist huidige situatie'!$H$79:$H$86,$G8)","v":0},{"$f":"COUNTIF('checklist huidige situatie'!$H$88:$H$92,$G8)","v":0},{"$f":"SUM(W8:AB8)","v":0}]
[null,null,null,null,null,null,null,null,null,null,null,"algemeen","voetgangers","fiets","motor / bromfiets","auto","vracht",null,null,null,null,null,"visie","voetgangers","fiets","motor / bromfiets","auto","vracht"]
[]
[]
[]
[]
[]
[]
[]
[]
[]
[]
[]
[]
[null,"Door middel van symbolen wordt aangegeven\nwelke data uw bedrijf nog bijkomend kan verzamelen.",null,null,null,null,null,null,null,null,"Door middel van symbolen wordt aangegeven\nwelke risicofactoren er in uw bedrijf aanwezig zijn.",null,null,null,null,null,null,null,null,null,null,"Door middel van symbolen wordt aangegeven \nwelke maatregelen uw bedrijf nog bijkomend kan nemen."]
[]
[null,"Items waarover het bedrijf informatie kan verzamelen",null,null,null,null,null,null,null,"R1 - risicofactoren algemeen",null,null,null,null,null,null,null,null,null,null,"M1 - visie en strategie"]
[{"$f":"IF('checklist huidige situatie'!H9=1,\"■\",IF('checklist huidige situatie'!H9=2,\"□\",IF('checklist huidige situatie'!H9=3,\"?\",IF('checklist huidige situatie'!H9=4,\"x\",IF('checklist huidige situatie'!H9=0,\"/\",\"!?\")))))","v":"/"},"Verkeersongevallencijfers",null,null,null,null,null,null,null,{"$f":"IF('checklist huidige situatie'!H23=1,\"■\",IF('checklist huidige situatie'!H23=2,\"□\",IF('checklist huidige situatie'!H23=3,\"?\",IF('checklist huidige situatie'!H23=4,\"x\",IF('checklist huidige situatie'!H23=0,\"/\",\"!?\")))))","v":"/"},"Gevaarlijke punten in de omgeving",null,null,null,null,null,null,null,null,null,{"$f":"IF('checklist huidige situatie'!H58=1,\"■\",IF('checklist huidige situatie'!H58=2,\"□\",IF('checklist huidige situatie'!H58=3,\"?\",IF('checklist huidige situatie'!H58=4,\"x\",IF('checklist huidige situatie'!H58=0,\"/\",\"!?\")))))","v":"/"},"Opmaak verkeersveiligheidsbeleid of -plan (evt. integratie met Globaal Preventieplan)"]
[{"$f":"IF('checklist huidige situatie'!H10=1,\"■\",IF('checklist huidige situatie'!H10=2,\"□\",IF('checklist huidige situatie'!H10=3,\"?\",IF('checklist huidige situatie'!H10=4,\"x\",IF('checklist huidige situatie'!H10=0,\"/\",\"!?\")))))","v":"/"},"Welke vervoermiddelen werknemers gebruiken voor woon-werkverkeer (incl. voor- en natraject)",null,null,null,null,null,null,null,"R2- risicofactoren voetgangers",null,null,null,null,null,null,null,null,null,null,{"$f":"IF('checklist huidige situatie'!H59=1,\"■\",IF('checklist huidige situatie'!H59=2,\"□\",IF('checklist huidige situatie'!H59=3,\"?\",IF('checklist huidige situatie'!H59=4,\"x\",IF('checklist huidige situatie'!H59=0,\"/\",\"!?\")))))","v":"/"},"Creëren verkeersveiligheidscultuur in het bedrijf (vb. duidelijke regels mbt alcoholgebruik, checken fietsverlichting,...)"]
[{"$f":"IF('checklist huidige situatie'!H11=1,\"■\",IF('checklist huidige situatie'!H11=2,\"□\",IF('checklist huidige situatie'!H11=3,\"?\",IF('checklist huidige situatie'!H11=4,\"x\",IF('checklist huidige situatie'!H11=0,\"/\",\"!?\")))))","v":"/"},"Boetes voor verkeersovertredingen",null,null,null,null,null,null,null,{"$f":"IF('checklist huidige situatie'!H25=1,\"■\",IF('checklist huidige situatie'!H25=2,\"□\",IF('checklist huidige situatie'!H25=3,\"?\",IF('checklist huidige situatie'!H25=4,\"x\",IF('checklist huidige situatie'!H25=0,\"/\",\"!?\")))))","v":"/"},"Knelpunten op het woon-werk traject (hoofd- en/of voor-/natraject)",null,null,null,null,null,null,null,null,null,{"$f":"IF('checklist huidige situatie'!H60=1,\"■\",IF('checklist huidige situatie'!H60=2,\"□\",IF('checklist huidige situatie'!H60=3,\"?\",IF('checklist huidige situatie'!H60=4,\"x\",IF('checklist huidige situatie'!H60=0,\"/\",\"!?\")))))","v":"/"},"Ondertekenen van het European Road Safety Charter"]
[{"$f":"IF('checklist huidige situatie'!H12=1,\"■\",IF('checklist huidige situatie'!H12=2,\"□\",IF('checklist huidige situatie'!H12=3,\"?\",IF('checklist huidige situatie'!H12=4,\"x\",IF('checklist huidige situatie'!H12=0,\"/\",\"!?\")))))","v":"/"},"Aantal dienstverplaatsingen per vervoermiddel",null,null,null,null,null,null,null,{"$f":"IF('checklist huidige situatie'!H26=1,\"■\",IF('checklist huidige situatie'!H26=2,\"□\",IF('checklist huidige situatie'!H26=3,\"?\",IF('checklist huidige situatie'!H26=4,\"x\",IF('checklist huidige situatie'!H26=0,\"/\",\"!?\")))))","v":"/"},"Knelpunten op het eigen terrein",null,null,null,null,null,null,null,null,null,{"$f":"IF('checklist huidige situatie'!H61=1,\"■\",IF('checklist huidige situatie'!H61=2,\"□\",IF('checklist huidige situatie'!H61=3,\"?\",IF('checklist huidige situatie'!H61=4,\"x\",IF('checklist huidige situatie'!H61=0,\"/\",\"!?\")))))","v":"/"},"Opstellen en communiceren van gedragscodes i.v.m. veilig rijgedrag"]
[{"$f":"IF('checklist huidige situatie'!H13=1,\"■\",IF('checklist huidige situatie'!H13=2,\"□\",IF('checklist huidige situatie'!H13=3,\"?\",IF('checklist huidige situatie'!H13=4,\"x\",IF('checklist huidige situatie'!H13=0,\"/\",\"!?\")))))","v":"/"},"Gebruikte fietsroutes voor woon-werkverplaatsingen",null,null,null,null,null,null,null,{"$f":"IF('checklist huidige situatie'!H27=1,\"■\",IF('checklist huidige situatie'!H27=2,\"□\",IF('checklist huidige situatie'!H27=3,\"?\",IF('checklist huidige situatie'!H27=4,\"x\",IF('checklist huidige situatie'!H27=0,\"/\",\"!?\")))))","v":"/"},"Knelpunten op de wandelroute naar openbaar vervoer-halte",null,null,null,null,null,null,null,null,null,{"$f":"IF('checklist huidige situatie'!H62=1,\"■\",IF('checklist huidige situatie'!H62=2,\"□\",IF('checklist huidige situatie'!H62=3,\"?\",IF('checklist huidige situatie'!H62=4,\"x\",IF('checklist huidige situatie'!H62=0,\"/\",\"!?\")))))","v":"/"},"Vermijden van verplaatsingen indien mogelijk (teleconferencing, thuiswerk...)"]
[{"$f":"IF('checklist huidige situatie'!H14=1,\"■\",IF('checklist huidige situatie'!H14=2,\"□\",IF('checklist huidige situatie'!H14=3,\"?\",IF('checklist huidige situatie'!H14=4,\"x\",IF('checklist huidige situatie'!H14=0,\"/\",\"!?\")))))","v":"/"},"Gebruikte fietsroutes voor dienstverplaatsingen ",null,null,null,null,null,null,null,"R3 - risicofactoren fietsers",null,null,null,null,null,null,null,null,null,null,{"$f":"IF('checklist huidige situatie'!H63=1,\"■\",IF('checklist huidige situatie'!H63=2,\"□\",IF('checklist huidige situatie'!H63=3,\"?\",IF('checklist huidige situatie'!H63=4,\"x\",IF('checklist huidige situatie'!H63=0,\"/\",\"!?\")))))","v":"/"},"Aandacht voor de verkeersveiligheid op de eigen site"]
[{"$f":"IF('checklist huidige situatie'!H15=1,\"■\",IF('checklist huidige situatie'!H15=2,\"□\",IF('checklist huidige situatie'!H15=3,\"?\",IF('checklist huidige situatie'!H15=4,\"x\",IF('checklist huidige situatie'!H15=0,\"/\",\"!?\")))))","v":"/"},"Helmdracht bij fietsers",null,null,null,null,null,null,null,{"$f":"IF('checklist huidige situatie'!H29=1,\"■\",IF('checklist huidige situatie'!H29=2,\"□\",IF('checklist huidige situatie'!H29=3,\"?\",IF('checklist huidige situatie'!H29=4,\"x\",IF('checklist huidige situatie'!H29=0,\"/\",\"!?\")))))","v":"/"},"Knelpunten op fietsroutes ",null,null,null,null,null,null,null,null,null,{"$f":"IF('checklist huidige situatie'!H64=1,\"■\",IF('checklist huidige situatie'!H64=2,\"□\",IF('checklist huidige situatie'!H64=3,\"?\",IF('checklist huidige situatie'!H64=4,\"x\",IF('checklist huidige situatie'!H64=0,\"/\",\"!?\")))))","v":"/"},"Gebruik van het openbaar vervoer aanmoedigen"]
[{"$f":"IF('checklist huidige situatie'!H16=1,\"■\",IF('checklist huidige situatie'!H16=2,\"□\",IF('checklist huidige situatie'!H16=3,\"?\",IF('checklist huidige situatie'!H16=4,\"x\",IF('checklist huidige situatie'!H16=0,\"/\",\"!?\")))))","v":"/"},"Gebruik goed functionerende verlichting bij fietsers",null,null,null,null,null,null,null,{"$f":"IF('checklist huidige situatie'!H30=1,\"■\",IF('checklist huidige situatie'!H30=2,\"□\",IF('checklist huidige situatie'!H30=3,\"?\",IF('checklist huidige situatie'!H30=4,\"x\",IF('checklist huidige situatie'!H30=0,\"/\",\"!?\")))))","v":"/"},"Gevaarlijke punten op frequent gebruikte routes voor dienstverplaatsingen",null,null,null,null,null,null,null,null,null,"M2 - maatregelen voetgangers"]
[{"$f":"IF('checklist huidige situatie'!H17=1,\"■\",IF('checklist huidige situatie'!H17=2,\"□\",IF('checklist huidige situatie'!H17=3,\"?\",IF('checklist huidige situatie'!H17=4,\"x\",IF('checklist huidige situatie'!H17=0,\"/\",\"!?\")))))","v":"/"},"Dragen van fluoreflecterend materiaal bij fietsers",null,null,null,null,null,null,null,{"$f":"IF('checklist huidige situatie'!H31=1,\"■\",IF('checklist huidige situatie'!H31=2,\"□\",IF('checklist huidige situatie'!H31=3,\"?\",IF('checklist huidige situatie'!H31=4,\"x\",IF('checklist huidige situatie'!H31=0,\"/\",\"!?\")))))","v":"/"},"Gevaarlijke situaties op het eigen terrein (vb. door menging van verkeer)",null,null,null,null,null,null,null,null,null,{"$f":"IF('checklist huidige situatie'!H66=1,\"■\",IF('checklist huidige situatie'!H66=2,\"□\",IF('checklist huidige situatie'!H66=3,\"?\",IF('checklist huidige situatie'!H66=4,\"x\",IF('checklist huidige situatie'!H66=0,\"/\",\"!?\")))))","v":"/"},"Aandacht voor verkeersveiligheid op belangrijke voetgangersroutes (bv. naar bushalte)"]
[{"$f":"IF('checklist huidige situatie'!H18=1,\"■\",IF('checklist huidige situatie'!H18=2,\"□\",IF('checklist huidige situatie'!H18=3,\"?\",IF('checklist huidige situatie'!H18=4,\"x\",IF('checklist huidige situatie'!H18=0,\"/\",\"!?\")))))","v":"/"},"Gordeldracht bij automobilisten",null,null,null,null,null,null,null,{"$f":"IF('checklist huidige situatie'!H32=1,\"■\",IF('checklist huidige situatie'!H32=2,\"□\",IF('checklist huidige situatie'!H32=3,\"?\",IF('checklist huidige situatie'!H32=4,\"x\",IF('checklist huidige situatie'!H32=0,\"/\",\"!?\")))))","v":"/"},"Geen of onvoldoende helmdracht",null,null,null,null,null,null,null,null,null,{"$f":"IF('checklist huidige situatie'!H67=1,\"■\",IF('checklist huidige situatie'!H67=2,\"□\",IF('checklist huidige situatie'!H67=3,\"?\",IF('checklist huidige situatie'!H67=4,\"x\",IF('checklist huidige situatie'!H67=0,\"/\",\"!?\")))))","v":"/"},"Aandacht voor verkeersgedrag voetgangers (bv. Aandacht voor zichtbaarheid, gebruik zebrapaden, naleven verkeersregels ...)"]
[{"$f":"IF('checklist huidige situatie'!H19=1,\"■\",IF('checklist huidige situatie'!H19=2,\"□\",IF('checklist huidige situatie'!H19=3,\"?\",IF('checklist huidige situatie'!H19=4,\"x\",IF('checklist huidige situatie'!H19=0,\"/\",\"!?\")))))","v":"/"},"Helmdracht bij motorrijders en bromfietsers",null,null,null,null,null,null,null,{"$f":"IF('checklist huidige situatie'!H33=1,\"■\",IF('checklist huidige situatie'!H33=2,\"□\",IF('checklist huidige situatie'!H33=3,\"?\",IF('checklist huidige situatie'!H33=4,\"x\",IF('checklist huidige situatie'!H33=0,\"/\",\"!?\")))))","v":"/"},"Niet of onvoldoende dragen van fluoreflecterend materiaal "]
[null,null,null,null,null,null,null,null,null,{"$f":"IF('checklist huidige situatie'!H34=1,\"■\",IF('checklist huidige situatie'!H34=2,\"□\",IF('checklist huidige situatie'!H34=3,\"?\",IF('checklist huidige situatie'!H34=4,\"x\",IF('checklist huidige situatie'!H34=0,\"/\",\"!?\")))))","v":"/"},"Ontbreken of onvoldoende functioneren verlichting",null,null,null,null,null,null,null,null,null,"M3 - maatregelen fiets"]
[null,null,null,null,null,null,null,null,null,{"$f":"IF('checklist huidige situatie'!H35=1,\"■\",IF('checklist huidige situatie'!H35=2,\"□\",IF('checklist huidige situatie'!H35=3,\"?\",IF('checklist huidige situatie'!H35=4,\"x\",IF('checklist huidige situatie'!H35=0,\"/\",\"!?\")))))","v":"/"},"Gebruik van een racefiets of elektrische fiets",null,null,null,null,null,null,null,null,null,{"$f":"IF('checklist huidige situatie'!H69=1,\"■\",IF('checklist huidige situatie'!H69=2,\"□\",IF('checklist huidige situatie'!H69=3,\"?\",IF('checklist huidige situatie'!H69=4,\"x\",IF('checklist huidige situatie'!H69=0,\"/\",\"!?\")))))","v":"/"},"Fietscontrole"]
[null,null,null,null,null,null,null,null,null,"R4- risicofactoren motor en bromfiets",null,null,null,null,null,null,null,null,null,null,{"$f":"IF('checklist huidige situatie'!H70=1,\"■\",IF('checklist huidige situatie'!H70=2,\"□\",IF('checklist huidige situatie'!H70=3,\"?\",IF('checklist huidige situatie'!H70=4,\"x\",IF('checklist huidige situatie'!H70=0,\"/\",\"!?\")))))","v":"/"},"Fietsattributen voorzien (helm en fluoreflecterend materiaal)"]
[null,null,null,null,null,null,null,null,null,{"$f":"IF('checklist huidige situatie'!H37=1,\"■\",IF('checklist huidige situatie'!H37=2,\"□\",IF('checklist huidige situatie'!H37=3,\"?\",IF('checklist huidige situatie'!H37=4,\"x\",IF('checklist huidige situatie'!H37=0,\"/\",\"!?\")))))","v":"/"},"Werknemers die zich voor het werk met de moto of bromfiets verplaatsen",null,null,null,null,null,null,null,null,null,{"$f":"IF('checklist huidige situatie'!H71=1,\"■\",IF('checklist huidige situatie'!H71=2,\"□\",IF('checklist huidige situatie'!H71=3,\"?\",IF('checklist huidige situatie'!H71=4,\"x\",IF('checklist huidige situatie'!H71=0,\"/\",\"!?\")))))","v":"/"},"Goede, beveiligde fietsenstalling voorzien"]
[null,null,null,null,null,null,null,null,null,"R5- risicofactoren auto",null,null,null,null,null,null,null,null,null,null,{"$f":"IF('checklist huidige situatie'!H72=1,\"■\",IF('checklist huidige situatie'!H72=2,\"□\",IF('checklist huidige situatie'!H72=3,\"?\",IF('checklist huidige situatie'!H72=4,\"x\",IF('checklist huidige situatie'!H72=0,\"/\",\"!?\")))))","v":"/"},"Fietsrouteadvies geven aan werknemers (promoten veiligste routes)"]
[null,null,null,null,null,null,null,null,null,{"$f":"IF('checklist huidige situatie'!H39=1,\"■\",IF('checklist huidige situatie'!H39=2,\"□\",IF('checklist huidige situatie'!H39=3,\"?\",IF('checklist huidige situatie'!H39=4,\"x\",IF('checklist huidige situatie'!H39=0,\"/\",\"!?\")))))","v":"/"},"Snelheidsovertredingen",null,null,null,null,null,null,null,null,null,{"$f":"IF('checklist huidige situatie'!H73=1,\"■\",IF('checklist huidige situatie'!H73=2,\"□\",IF('checklist huidige situatie'!H73=3,\"?\",IF('checklist huidige situatie'!H73=4,\"x\",IF('checklist huidige situatie'!H73=0,\"/\",\"!?\")))))","v":"/"},"Organiseren van een cursus veilig fietsen"]
[null,null,null,null,null,null,null,null,null,{"$f":"IF('checklist huidige situatie'!H40=1,\"■\",IF('checklist huidige situatie'!H40=2,\"□\",IF('checklist huidige situatie'!H40=3,\"?\",IF('checklist huidige situatie'!H40=4,\"x\",IF('checklist huidige situatie'!H40=0,\"/\",\"!?\")))))","v":"/"},"Andere overtredingen: roodlichtnegatie, niet-handenvrij bellen, …",null,null,null,null,null,null,null,null,null,"M4 - maatregelen motor en bromfiets"]
[null,null,null,null,null,null,null,null,null,{"$f":"IF('checklist huidige situatie'!H41=1,\"■\",IF('checklist huidige situatie'!H41=2,\"□\",IF('checklist huidige situatie'!H41=3,\"?\",IF('checklist huidige situatie'!H41=4,\"x\",IF('checklist huidige situatie'!H41=0,\"/\",\"!?\")))))","v":"/"},"Personeelsleden met risicovol rijgedrag",null,null,null,null,null,null,null,null,null,{"$f":"IF('checklist huidige situatie'!H75=1,\"■\",IF('checklist huidige situatie'!H75=2,\"□\",IF('checklist huidige situatie'!H75=3,\"?\",IF('checklist huidige situatie'!H75=4,\"x\",IF('checklist huidige situatie'!H75=0,\"/\",\"!?\")))))","v":"/"},"Organisatie opleiding defensief rijden voor motorrijders"]
[null,null,null,null,null,null,null,null,null,{"$f":"IF('checklist huidige situatie'!H42=1,\"■\",IF('checklist huidige situatie'!H42=2,\"□\",IF('checklist huidige situatie'!H42=3,\"?\",IF('checklist huidige situatie'!H42=4,\"x\",IF('checklist huidige situatie'!H42=0,\"/\",\"!?\")))))","v":"/"},"Personeelsleden die geen veiligheidsgordel dragen (voorin of achterin)",null,null,null,null,null,null,null,null,null,{"$f":"IF('checklist huidige situatie'!H76=1,\"■\",IF('checklist huidige situatie'!H76=2,\"□\",IF('checklist huidige situatie'!H76=3,\"?\",IF('checklist huidige situatie'!H76=4,\"x\",IF('checklist huidige situatie'!H76=0,\"/\",\"!?\")))))","v":"/"},"Stimuleren helmdracht en gebruik integraalhelm (die het hoofd helemaal omsluit)"]
[null,null,null,null,null,null,null,null,null,{"$f":"IF('checklist huidige situatie'!H43=1,\"■\",IF('checklist huidige situatie'!H43=2,\"□\",IF('checklist huidige situatie'!H43=3,\"?\",IF('checklist huidige situatie'!H43=4,\"x\",IF('checklist huidige situatie'!H43=0,\"/\",\"!?\")))))","v":"/"},"Personeelsleden die soms rijden onder invloed van alcohol",null,null,null,null,null,null,null,null,null,{"$f":"IF('checklist huidige situatie'!H77=1,\"■\",IF('checklist huidige situatie'!H77=2,\"□\",IF('checklist huidige situatie'!H77=3,\"?\",IF('checklist huidige situatie'!H77=4,\"x\",IF('checklist huidige situatie'!H77=0,\"/\",\"!?\")))))","v":"/"},"Aandacht voor kledij van motorrijders en bromfietsers"]
[null,null,null,null,null,null,null,null,null,{"$f":"IF('checklist huidige situatie'!H44=1,\"■\",IF('checklist huidige situatie'!H44=2,\"□\",IF('checklist huidige situatie'!H44=3,\"?\",IF('checklist huidige situatie'!H44=4,\"x\",IF('checklist huidige situatie'!H44=0,\"/\",\"!?\")))))","v":"/"},"Personeelsleden die soms rijden onder invloed van drugs of rijgevaarlijke medicijnen",null,null,null,null,null,null,null,null,null,"M5 - maatregelen auto"]
[null,null,null,null,null,null,null,null,null,{"$f":"IF('checklist huidige situatie'!H45=1,\"■\",IF('checklist huidige situatie'!H45=2,\"□\",IF('checklist huidige situatie'!H45=3,\"?\",IF('checklist huidige situatie'!H45=4,\"x\",IF('checklist huidige situatie'!H45=0,\"/\",\"!?\")))))","v":"/"},"Personeelsleden die hun gsm of smartphone soms gebruiken tijdens het rijden ",null,null,null,null,null,null,null,null,null,{"$f":"IF('checklist huidige situatie'!H79=1,\"■\",IF('checklist huidige situatie'!H79=2,\"□\",IF('checklist huidige situatie'!H79=3,\"?\",IF('checklist huidige situatie'!H79=4,\"x\",IF('checklist huidige situatie'!H79=0,\"/\",\"!?\")))))","v":"/"},"Opstellen gedragscode voor autobestuurders"]
[null,null,null,null,null,null,null,null,null,{"$f":"IF('checklist huidige situatie'!H46=1,\"■\",IF('checklist huidige situatie'!H46=2,\"□\",IF('checklist huidige situatie'!H46=3,\"?\",IF('checklist huidige situatie'!H46=4,\"x\",IF('checklist huidige situatie'!H46=0,\"/\",\"!?\")))))","v":"/"},"Werknemers dienen ook achter het stuur permanent telefonisch bereikbaar te zijn en / of zelf gesprekken voeren (met handenvrije kit)",null,null,null,null,null,null,null,null,null,{"$f":"IF('checklist huidige situatie'!H80=1,\"■\",IF('checklist huidige situatie'!H80=2,\"□\",IF('checklist huidige situatie'!H80=3,\"?\",IF('checklist huidige situatie'!H80=4,\"x\",IF('checklist huidige situatie'!H80=0,\"/\",\"!?\")))))","v":"/"},"Rijgedrag van nieuwe werknemers opvolgen"]
[null,null,null,null,null,null,null,null,null,{"$f":"IF('checklist huidige situatie'!H47=1,\"■\",IF('checklist huidige situatie'!H47=2,\"□\",IF('checklist huidige situatie'!H47=3,\"?\",IF('checklist huidige situatie'!H47=4,\"x\",IF('checklist huidige situatie'!H47=0,\"/\",\"!?\")))))","v":"/"},"Personeelsleden die zeer lange woon-werkverplaatsingen met de auto maken",null,null,null,null,null,null,null,null,null,{"$f":"IF('checklist huidige situatie'!H81=1,\"■\",IF('checklist huidige situatie'!H81=2,\"□\",IF('checklist huidige situatie'!H81=3,\"?\",IF('checklist huidige situatie'!H81=4,\"x\",IF('checklist huidige situatie'!H81=0,\"/\",\"!?\")))))","v":"/"},"Telefoneren (ook handsfree) en rijden ontmoedigen. Kits voor handenvrij bellen voorzien in bedrijfs- en dienstwagens."]
[null,null,null,null,null,null,null,null,null,{"$f":"IF('checklist huidige situatie'!H48=1,\"■\",IF('checklist huidige situatie'!H48=2,\"□\",IF('checklist huidige situatie'!H48=3,\"?\",IF('checklist huidige situatie'!H48=4,\"x\",IF('checklist huidige situatie'!H48=0,\"/\",\"!?\")))))","v":"/"},"Frequent dienstverplaatsingen met de auto",null,null,null,null,null,null,null,null,null,{"$f":"IF('checklist huidige situatie'!H82=1,\"■\",IF('checklist huidige situatie'!H82=2,\"□\",IF('checklist huidige situatie'!H82=3,\"?\",IF('checklist huidige situatie'!H82=4,\"x\",IF('checklist huidige situatie'!H82=0,\"/\",\"!?\")))))","v":"/"},"Medewerkers die verkeersovertreding begaan responsabiliseren"]
[null,null,null,null,null,null,null,null,null,{"$f":"IF('checklist huidige situatie'!H49=1,\"■\",IF('checklist huidige situatie'!H49=2,\"□\",IF('checklist huidige situatie'!H49=3,\"?\",IF('checklist huidige situatie'!H49=4,\"x\",IF('checklist huidige situatie'!H49=0,\"/\",\"!?\")))))","v":"/"},"Regelmatig lange dienstverplaatsingen met de auto",null,null,null,null,null,null,null,null,null,{"$f":"IF('checklist huidige situatie'!H83=1,\"■\",IF('checklist huidige situatie'!H83=2,\"□\",IF('checklist huidige situatie'!H83=3,\"?\",IF('checklist huidige situatie'!H83=4,\"x\",IF('checklist huidige situatie'!H83=0,\"/\",\"!?\")))))","v":"/"},"Aandacht voor rijden-onder-invloed bij bedrijfsevenementen"]
[null,null,null,null,null,null,null,null,null,{"$f":"IF('checklist huidige situatie'!H50=1,\"■\",IF('checklist huidige situatie'!H50=2,\"□\",IF('checklist huidige situatie'!H50=3,\"?\",IF('checklist huidige situatie'!H50=4,\"x\",IF('checklist huidige situatie'!H50=0,\"/\",\"!?\")))))","v":"/"},"Woon-werk- of dienstverplaatsingen met de auto op zeer vroege of heel late uren",null,null,null,null,null,null,null,null,null,{"$f":"IF('checklist huidige situatie'!H84=1,\"■\",IF('checklist huidige situatie'!H84=2,\"□\",IF('checklist huidige situatie'!H84=3,\"?\",IF('checklist huidige situatie'!H84=4,\"x\",IF('checklist huidige situatie'!H84=0,\"/\",\"!?\")))))","v":"/"},"Aandacht voor verkeersveiligheid in fleet management (vb. nieuwe technologieën: Intelligent Speed Adaptation (ISA), regelmatig onderhoud, voertuigen met voetganger-fietservriendelijke autofronten, winterbanden ...)"]
[null,null,null,null,null,null,null,null,null,"R6- risicofactoren vracht",null,null,null,null,null,null,null,null,null,null,{"$f":"IF('checklist huidige situatie'!H85=1,\"■\",IF('checklist huidige situatie'!H85=2,\"□\",IF('checklist huidige situatie'!H85=3,\"?\",IF('checklist huidige situatie'!H85=4,\"x\",IF('checklist huidige situatie'!H85=0,\"/\",\"!?\")))))","v":"/"},"Organiseren cursus defensief rijden voor automobilisten"]
[null,null,null,null,null,null,null,null,null,{"$f":"IF('checklist huidige situatie'!H52=1,\"■\",IF('checklist huidige situatie'!H52=2,\"□\",IF('checklist huidige situatie'!H52=3,\"?\",IF('checklist huidige situatie'!H52=4,\"x\",IF('checklist huidige situatie'!H52=0,\"/\",\"!?\")))))","v":"/"},"Frequent vrachtwagenleveringen uitvoeren",null,null,null,null,null,null,null,null,null,{"$f":"IF('checklist huidige situatie'!H86=1,\"■\",IF('checklist huidige situatie'!H86=2,\"□\",IF('checklist huidige situatie'!H86=3,\"?\",IF('checklist huidige situatie'!H86=4,\"x\",IF('checklist huidige situatie'!H86=0,\"/\",\"!?\")))))","v":"/"},"Aanbieden overnachting ipv werknemers een lange, late rit naar huis laten maken"]
[null,null,null,null,null,null,null,null,null,{"$f":"IF('checklist huidige situatie'!H53=1,\"■\",IF('checklist huidige situatie'!H53=2,\"□\",IF('checklist huidige situatie'!H53=3,\"?\",IF('checklist huidige situatie'!H53=4,\"x\",IF('checklist huidige situatie'!H53=0,\"/\",\"!?\")))))","v":"/"},"Vaak leveringen aan het bedrijf",null,null,null,null,null,null,null,null,null,"M6 - maatregelen vracht"]
[null,null,null,null,null,null,null,null,null,{"$f":"IF('checklist huidige situatie'!H54=1,\"■\",IF('checklist huidige situatie'!H54=2,\"□\",IF('checklist huidige situatie'!H54=3,\"?\",IF('checklist huidige situatie'!H54=4,\"x\",IF('checklist huidige situatie'!H54=0,\"/\",\"!?\")))))","v":"/"},"Vrachtwagens maken gebruik van wegen die minder geschikt zijn voor vrachtwagenverkeer\nvb. omdat er een confrontatie is met zachte weggebruikers, onaangepaste infrastructuur …",null,null,null,null,null,null,null,null,null,{"$f":"IF('checklist huidige situatie'!H88=1,\"■\",IF('checklist huidige situatie'!H88=2,\"□\",IF('checklist huidige situatie'!H88=3,\"?\",IF('checklist huidige situatie'!H88=4,\"x\",IF('checklist huidige situatie'!H88=0,\"/\",\"!?\")))))","v":"/"},"Gedragscode voor vrachtwagenbestuurders opstellen"]
[null,null,null,null,null,null,null,null,null,null,null,null,null,null,null,null,null,null,null,null,{"$f":"IF('checklist huidige situatie'!H89=1,\"■\",IF('checklist huidige situatie'!H89=2,\"□\",IF('checklist huidige situatie'!H89=3,\"?\",IF('checklist huidige situatie'!H89=4,\"x\",IF('checklist huidige situatie'!H89=0,\"/\",\"!?\")))))","v":"/"},"Vrachtwagens voorzien van laatste technische ontwikkelingen die veiligheid verbeteren"]
[null,null,null,null,null,null,null,null,null,null,null,null,null,null,null,null,null,null,null,null,{"$f":"IF('checklist huidige situatie'!H90=1,\"■\",IF('checklist huidige situatie'!H90=2,\"□\",IF('checklist huidige situatie'!H90=3,\"?\",IF('checklist huidige situatie'!H90=4,\"x\",IF('checklist huidige situatie'!H90=0,\"/\",\"!?\")))))","v":"/"},"Rijplanning niet overladen"]
[null,null,null,null,null,null,null,null,null,null,null,null,null,null,null,null,null,null,null,null,{"$f":"IF('checklist huidige situatie'!H91=1,\"■\",IF('checklist huidige situatie'!H91=2,\"□\",IF('checklist huidige situatie'!H91=3,\"?\",IF('checklist huidige situatie'!H91=4,\"x\",IF('checklist huidige situatie'!H91=0,\"/\",\"!?\")))))","v":"/"},"Ondertekenen van het Truckveilig-charter op www.truckveilig.be"]
[null,null,null,null,null,null,null,null,null,null,null,null,null,null,null,null,null,null,null,null,{"$f":"IF('checklist huidige situatie'!H92=1,\"■\",IF('checklist huidige situatie'!H92=2,\"□\",IF('checklist huidige situatie'!H92=3,\"?\",IF('checklist huidige situatie'!H92=4,\"x\",IF('checklist huidige situatie'!H92=0,\"/\",\"!?\")))))","v":"/"},"Stimuleren en faciliteren om rij- en rusttijden te respecteren"]

{"sheet":"overzicht - aanzet acties (2)","index":3,"n_rows":154,"n_cols":10,"rows_kept":154,"cut":false,"hidden":false,"merged":[[23,2,23,6],[61,2,61,8],[119,2,119,9],[120,2,120,8],[38,2,38,9],[96,2,96,9],[58,2,58,9],[116,2,116,9],[26,2,26,7],[63,2,63,8],[27,2,27,7],[64,2,64,8],[28,2,28,7],[65,2,65,8],[72,2,72,8],[73,2,73,8],[29,2,29,7],[30,2,30,7],[67,2,67,8],[31,2,31,7],[68,2,68,8],[32,2,32,7],[33,2,33,7],[70,2,70,8],[125,2,125,8],[34,2,34,7],[71,2,71,8],[78,2,78,8],[123,2,123,8],[80,2,80,8],[124,2,124,8],[75,2,75,8],[79,2,79,9],[69,2,69,8],[121,2,121,8],[77,2,77,8],[122,2,122,8],[81,2,81,8],[130,2,130,8],[131,2,131,9],[128,2,128,8],[132,2,132,8],[82,2,82,8],[83,2,83,8],[127,2,127,9],[84,2,84,9],[141,2,141,8],[85,2,85,9],[90,2,90,8],[134,2,134,8],[136,2,136,8],[87,2,87,9],[137,2,137,9],[133,2,133,8],[144,2,144,8],[88,2,88,9],[138,2,138,8],[145,2,145,9],[142,2,142,8],[140,2,140,8],[150,2,150,9],[151,2,151,8],[152,2,152,8],[154,2,154,8],[1,2,1,9],[24,2,24,9],[25,2,25,9],[21,2,21,9],[153,2,153,8],[146,2,146,8],[147,2,147,9],[91,2,91,8],[92,2,92,9],[149,2,149,8],[86,2,86,9],[143,2,143,8]]}
[null,null,"Dataverzameling"]
[null,null,"Hierbij krijgt u een overzicht van de dataverzameling inzake verkeersveiligheid van uw bedrijf"]
[null,"Legende"]
[null,"■","wordt verzameld",{"$f":"COUNTIF('checklist huidige situatie'!H$9:H$19,1)","v":0},null,null,null,1]
[null,"□","wordt nog niet verzameld",{"$f":"COUNTIF('checklist huidige situatie'!H$9:H$19,2)","v":0},null,null,null,2]
[null,"?","weet niet",{"$f":"COUNTIF('checklist huidige situatie'!H$9:H$19,3)","v":0},null,null,null,3]
[null,"/","niet ingevuld",{"$f":"11-SUM(D4:D6,D8)","v":11},null,null,null,0]
[null,"x","niet van toepassing",{"$f":"COUNTIF('checklist huidige situatie'!H$9:H$19,4)","v":0},null,null,null,4]
[]
[]
[]
[]
[]
[]
[]
[]
[]
[]
[]
[]
[]
[null,null,"Door middel van symbolen wordt aangegeven\nwelke data uw bedrijf nog bijkomend kan verzamelen."]
[]
[null,null,"Items waarover het bedrijf informatie kan verzamelen"]
[null,{"$f":"IF('checklist huidige situatie'!H9=1,\"■\",IF('checklist huidige situatie'!H9=2,\"□\",IF('checklist huidige situatie'!H9=3,\"?\",IF('checklist huidige situatie'!H9=4,\"x\",IF('checklist huidige situatie'!H9=0,\"/\",\"!?\")))))","v":"/"},"Verkeersongevallencijfers"]
[null,{"$f":"IF('checklist huidige situatie'!H10=1,\"■\",IF('checklist huidige situatie'!H10=2,\"□\",IF('checklist huidige situatie'!H10=3,\"?\",IF('checklist huidige situatie'!H10=4,\"x\",IF('checklist huidige situatie'!H10=0,\"/\",\"!?\")))))","v":"/"},"Welke vervoermiddelen werknemers gebruiken voor woon-werkverkeer (incl. voor- en natraject)"]
[null,{"$f":"IF('checklist huidige situatie'!H11=1,\"■\",IF('checklist huidige situatie'!H11=2,\"□\",IF('checklist huidige situatie'!H11=3,\"?\",IF('checklist huidige situatie'!H11=4,\"x\",IF('checklist huidige situatie'!H11=0,\"/\",\"!?\")))))","v":"/"},"Boetes voor verkeersovertredingen"]
[null,{"$f":"IF('checklist huidige situatie'!H12=1,\"■\",IF('checklist huidige situatie'!H12=2,\"□\",IF('checklist huidige situatie'!H12=3,\"?\",IF('checklist huidige situatie'!H12=4,\"x\",IF('checklist huidige situatie'!H12=0,\"/\",\"!?\")))))","v":"/"},"Aantal dienstverplaatsingen per vervoermiddel"]
[null,{"$f":"IF('checklist huidige situatie'!H13=1,\"■\",IF('checklist huidige situatie'!H13=2,\"□\",IF('checklist huidige situatie'!H13=3,\"?\",IF('checklist huidige situatie'!H13=4,\"x\",IF('checklist huidige situatie'!H13=0,\"/\",\"!?\")))))","v":"/"},"Gebruikte fietsroutes voor woon-werkverplaatsingen"]
[null,{"$f":"IF('checklist huidige situatie'!H14=1,\"■\",IF('checklist huidige situatie'!H14=2,\"□\",IF('checklist huidige situatie'!H14=3,\"?\",IF('checklist huidige situatie'!H14=4,\"x\",IF('checklist huidige situatie'!H14=0,\"/\",\"!?\")))))","v":"/"},"Gebruikte fietsroutes voor dienstverplaatsingen "]
[null,{"$f":"IF('checklist huidige situatie'!H15=1,\"■\",IF('checklist huidige situatie'!H15=2,\"□\",IF('checklist huidige situatie'!H15=3,\"?\",IF('checklist huidige situatie'!H15=4,\"x\",IF('checklist huidige situatie'!H15=0,\"/\",\"!?\")))))","v":"/"},"Helmdracht bij fietsers"]
[null,{"$f":"IF('checklist huidige situatie'!H16=1,\"■\",IF('checklist huidige situatie'!H16=2,\"□\",IF('checklist huidige situatie'!H16=3,\"?\",IF('checklist huidige situatie'!H16=4,\"x\",IF('checklist huidige situatie'!H16=0,\"/\",\"!?\")))))","v":"/"},"Gebruik goed functionerende verlichting bij fietsers"]
[null,{"$f":"IF('checklist huidige situatie'!H17=1,\"■\",IF('checklist huidige situatie'!H17=2,\"□\",IF('checklist huidige situatie'!H17=3,\"?\",IF('checklist huidige situatie'!H17=4,\"x\",IF('checklist huidige situatie'!H17=0,\"/\",\"!?\")))))","v":"/"},"Dragen van fluoreflecterend materiaal bij fietsers"]
[null,{"$f":"IF('checklist huidige situatie'!H18=1,\"■\",IF('checklist huidige situatie'!H18=2,\"□\",IF('checklist huidige situatie'!H18=3,\"?\",IF('checklist huidige situatie'!H18=4,\"x\",IF('checklist huidige situatie'!H18=0,\"/\",\"!?\")))))","v":"/"},"Gordeldracht bij automobilisten"]
[null,{"$f":"IF('checklist huidige situatie'!H19=1,\"■\",IF('checklist huidige situatie'!H19=2,\"□\",IF('checklist huidige situatie'!H19=3,\"?\",IF('checklist huidige situatie'!H19=4,\"x\",IF('checklist huidige situatie'!H19=0,\"/\",\"!?\")))))","v":"/"},"Helmdracht bij motorrijders en bromfietsers"]
[]
[]
[null,null,"Risicofactoren"]
[null,null,"Hierbij krijgt u een overzicht van de aan- en afwezigheid van risicofactoren betreffende verkeersveiligheid voor de verschillende vervoermiddelen in uw bedrijf"]
[null,"Legende",null,"alg.","voet-gangers","fiets","motor / bromfiets","auto","vracht","totaal"]
[null,"■","aanwezig",{"$f":"COUNTIF('checklist huidige situatie'!H$23:H$23,$H4)","v":0},{"$f":"COUNTIF('checklist huidige situatie'!H$25:H$27,$H4)","v":0},{"$f":"COUNTIF('checklist huidige situatie'!H$29:H$35,$H4)","v":0},{"$f":"COUNTIF('checklist huidige situatie'!H$37:H$37,$H4)","v":0},{"$f":"COUNTIF('checklist huidige situatie'!H$39:H$50,$H4)","v":0},{"$f":"COUNTIF('checklist huidige situatie'!H$52:H$54,$H4)","v":0},{"$f":"SUM(D41:I41)","v":0}]
[null,"□","afwezig",{"$f":"COUNTIF('checklist huidige situatie'!H$23:H$23,$H5)","v":0},{"$f":"COUNTIF('checklist huidige situatie'!H$25:H$27,$H5)","v":0},{"$f":"COUNTIF('checklist huidige situatie'!H$29:H$35,$H5)","v":0},{"$f":"COUNTIF('checklist huidige situatie'!H$37:H$37,$H5)","v":0},{"$f":"COUNTIF('checklist huidige situatie'!H$39:H$50,$H5)","v":0},{"$f":"COUNTIF('checklist huidige situatie'!H$52:H$54,$H5)","v":0},{"$f":"SUM(D42:I42)","v":0}]
[null,"?","weet niet",{"$f":"COUNTIF('checklist huidige situatie'!H$23:H$23,$H6)","v":0},{"$f":"COUNTIF('checklist huidige situatie'!H$25:H$27,$H6)","v":0},{"$f":"COUNTIF('checklist huidige situatie'!H$29:H$35,$H6)","v":0},{"$f":"COUNTIF('checklist huidige situatie'!H$37:H$37,$H6)","v":0},{"$f":"COUNTIF('checklist huidige situatie'!H$39:H$50,$H6)","v":0},{"$f":"COUNTIF('checklist huidige situatie'!H$52:H$54,$H6)","v":0},{"$f":"SUM(D43:I43)","v":0}]
[null,"/","niet ingevuld",{"$f":"1-SUM(D41:D43,D45)","v":1},{"$f":"3-SUM(E41:E43,E45)","v":3},{"$f":"7-SUM(F41:F43,F45)","v":7},{"$f":"1-SUM(G41:G43,G45)","v":1},{"$f":"12-SUM(H41:H43,H45)","v":12},{"$f":"2-SUM(I41:I43,I45)","v":2},{"$f":"26-SUM(J41:J43,J45)","v":26}]
[null,"x","niet van toepassing",{"$f":"COUNTIF('checklist huidige situatie'!H$23:H$23,$H8)","v":0},{"$f":"COUNTIF('checklist huidige situatie'!H$25:H$27,$H8)","v":0},{"$f":"COUNTIF('checklist huidige situatie'!H$29:H$35,$H8)","v":0},{"$f":"COUNTIF('checklist huidige situatie'!H$37:H$37,$H8)","v":0},{"$f":"COUNTIF('checklist huidige situatie'!H$39:H$50,$H8)","v":0},{"$f":"COUNTIF('checklist huidige situatie'!H$52:H$54,$H8)","v":0},{"$f":"SUM(D45:I45)","v":0}]
[null,null,null,"algemeen","voetgangers","fiets","motor / bromfiets","auto","vracht"]
[]
[]
[]
[]
[]
[]
[]
[]
[]
[]
[]
[]
[null,null,"Door middel van symbolen wordt aangegeven\nwelke risicofactoren er in uw bedrijf aanwezig zijn."]
[]
[null,"R1 - risicofactoren algemeen"]
[null,{"$f":"IF('checklist huidige situatie'!H23=1,\"■\",IF('checklist huidige situatie'!H23=2,\"□\",IF('checklist huidige situatie'!H23=3,\"?\",IF('checklist huidige situatie'!H23=4,\"x\",IF('checklist huidige situatie'!H23=0,\"/\",\"!?\")))))","v":"/"},"Gevaarlijke punten in de omgeving"]
[null,"R2- risicofactoren voetgangers"]
[null,{"$f":"IF('checklist huidige situatie'!H25=1,\"■\",IF('checklist huidige situatie'!H25=2,\"□\",IF('checklist huidige situatie'!H25=3,\"?\",IF('checklist huidige situatie'!H25=4,\"x\",IF('checklist huidige situatie'!H25=0,\"/\",\"!?\")))))","v":"/"},"Knelpunten op het woon-werk traject (hoofd- en/of voor-/natraject)"]
[null,{"$f":"IF('checklist huidige situatie'!H26=1,\"■\",IF('checklist huidige situatie'!H26=2,\"□\",IF('checklist huidige situatie'!H26=3,\"?\",IF('checklist huidige situatie'!H26=4,\"x\",IF('checklist huidige situatie'!H26=0,\"/\",\"!?\")))))","v":"/"},"Knelpunten op het eigen terrein"]
[null,{"$f":"IF('checklist huidige situatie'!H27=1,\"■\",IF('checklist huidige situatie'!H27=2,\"□\",IF('checklist huidige situatie'!H27=3,\"?\",IF('checklist huidige situatie'!H27=4,\"x\",IF('checklist huidige situatie'!H27=0,\"/\",\"!?\")))))","v":"/"},"Knelpunten op de wandelroute naar openbaar vervoer-halte"]
[null,"R3 - risicofactoren fietsers"]
[null,{"$f":"IF('checklist huidige situatie'!H29=1,\"■\",IF('checklist huidige situatie'!H29=2,\"□\",IF('checklist huidige situatie'!H29=3,\"?\",IF('checklist huidige situatie'!H29=4,\"x\",IF('checklist huidige situatie'!H29=0,\"/\",\"!?\")))))","v":"/"},"Knelpunten op fietsroutes "]
[null,{"$f":"IF('checklist huidige situatie'!H30=1,\"■\",IF('checklist huidige situatie'!H30=2,\"□\",IF('checklist huidige situatie'!H30=3,\"?\",IF('checklist huidige situatie'!H30=4,\"x\",IF('checklist huidige situatie'!H30=0,\"/\",\"!?\")))))","v":"/"},"Gevaarlijke punten op frequent gebruikte routes voor dienstverplaatsingen"]
[null,{"$f":"IF('checklist huidige situatie'!H31=1,\"■\",IF('checklist huidige situatie'!H31=2,\"□\",IF('checklist huidige situatie'!H31=3,\"?\",IF('checklist huidige situatie'!H31=4,\"x\",IF('checklist huidige situatie'!H31=0,\"/\",\"!?\")))))","v":"/"},"Gevaarlijke situaties op het eigen terrein (vb. door menging van verkeer)"]
[null,{"$f":"IF('checklist huidige situatie'!H32=1,\"■\",IF('checklist huidige situatie'!H32=2,\"□\",IF('checklist huidige situatie'!H32=3,\"?\",IF('checklist huidige situatie'!H32=4,\"x\",IF('checklist huidige situatie'!H32=0,\"/\",\"!?\")))))","v":"/"},"Geen of onvoldoende helmdracht"]
[null,{"$f":"IF('checklist huidige situatie'!H33=1,\"■\",IF('checklist huidige situatie'!H33=2,\"□\",IF('checklist huidige situatie'!H33=3,\"?\",IF('checklist huidige situatie'!H33=4,\"x\",IF('checklist huidige situatie'!H33=0,\"/\",\"!?\")))))","v":"/"},"Niet of onvoldoende dragen van fluoreflecterend materiaal "]
[null,{"$f":"IF('checklist huidige situatie'!H34=1,\"■\",IF('checklist huidige situatie'!H34=2,\"□\",IF('checklist huidige situatie'!H34=3,\"?\",IF('checklist huidige situatie'!H34=4,\"x\",IF('checklist huidige situatie'!H34=0,\"/\",\"!?\")))))","v":"/"},"Ontbreken of onvoldoende functioneren verlichting"]
[null,{"$f":"IF('checklist huidige situatie'!H35=1,\"■\",IF('checklist huidige situatie'!H35=2,\"□\",IF('checklist huidige situatie'!H35=3,\"?\",IF('checklist huidige situatie'!H35=4,\"x\",IF('checklist huidige situatie'!H35=0,\"/\",\"!?\")))))","v":"/"},"Gebruik van een racefiets of elektrische fiets"]
[null,"R4- risicofactoren motor en bromfiets"]
[null,{"$f":"IF('checklist huidige situatie'!H37=1,\"■\",IF('checklist huidige situatie'!H37=2,\"□\",IF('checklist huidige situatie'!H37=3,\"?\",IF('checklist huidige situatie'!H37=4,\"x\",IF('checklist huidige situatie'!H37=0,\"/\",\"!?\")))))","v":"/"},"Werknemers die zich voor het werk met de moto of bromfiets verplaatsen"]
[null,"R5- risicofactoren auto"]
[null,{"$f":"IF('checklist huidige situatie'!H39=1,\"■\",IF('checklist huidige situatie'!H39=2,\"□\",IF('checklist huidige situatie'!H39=3,\"?\",IF('checklist huidige situatie'!H39=4,\"x\",IF('checklist huidige situatie'!H39=0,\"/\",\"!?\")))))","v":"/"},"Snelheidsovertredingen"]
[null,{"$f":"IF('checklist huidige situatie'!H40=1,\"■\",IF('checklist huidige situatie'!H40=2,\"□\",IF('checklist huidige situatie'!H40=3,\"?\",IF('checklist huidige situatie'!H40=4,\"x\",IF('checklist huidige situatie'!H40=0,\"/\",\"!?\")))))","v":"/"},"Andere overtredingen: roodlichtnegatie, niet-handenvrij bellen, …"]
[null,{"$f":"IF('checklist huidige situatie'!H41=1,\"■\",IF('checklist huidige situatie'!H41=2,\"□\",IF('checklist huidige situatie'!H41=3,\"?\",IF('checklist huidige situatie'!H41=4,\"x\",IF('checklist huidige situatie'!H41=0,\"/\",\"!?\")))))","v":"/"},"Personeelsleden met risicovol rijgedrag"]
[null,{"$f":"IF('checklist huidige situatie'!H42=1,\"■\",IF('checklist huidige situatie'!H42=2,\"□\",IF('checklist huidige situatie'!H42=3,\"?\",IF('checklist huidige situatie'!H42=4,\"x\",IF('checklist huidige situatie'!H42=0,\"/\",\"!?\")))))","v":"/"},"Personeelsleden die geen veiligheidsgordel dragen (voorin of achterin)"]
[null,{"$f":"IF('checklist huidige situatie'!H43=1,\"■\",IF('checklist huidige situatie'!H43=2,\"□\",IF('checklist huidige situatie'!H43=3,\"?\",IF('checklist huidige situatie'!H43=4,\"x\",IF('checklist huidige situatie'!H43=0,\"/\",\"!?\")))))","v":"/"},"Personeelsleden die soms rijden onder invloed van alcohol"]
[null,{"$f":"IF('checklist huidige situatie'!H44=1,\"■\",IF('checklist huidige situatie'!H44=2,\"□\",IF('checklist huidige situatie'!H44=3,\"?\",IF('checklist huidige situatie'!H44=4,\"x\",IF('checklist huidige situatie'!H44=0,\"/\",\"!?\")))))","v":"/"},"Personeelsleden die soms rijden onder invloed van drugs of rijgevaarlijke medicijnen"]
[null,{"$f":"IF('checklist huidige situatie'!H45=1,\"■\",IF('checklist huidige situatie'!H45=2,\"□\",IF('checklist huidige situatie'!H45=3,\"?\",IF('checklist huidige situatie'!H45=4,\"x\",IF('checklist huidige situatie'!H45=0,\"/\",\"!?\")))))","v":"/"},"Personeelsleden die hun gsm of smartphone soms gebruiken tijdens het rijden "]
[null,{"$f":"IF('checklist huidige situatie'!H46=1,\"■\",IF('checklist huidige situatie'!H46=2,\"□\",IF('checklist huidige situatie'!H46=3,\"?\",IF('checklist huidige situatie'!H46=4,\"x\",IF('checklist huidige situatie'!H46=0,\"/\",\"!?\")))))","v":"/"},"Werknemers dienen ook achter het stuur permanent telefonisch bereikbaar te zijn en / of zelf gesprekken voeren (met handenvrije kit)"]
[null,{"$f":"IF('checklist huidige situatie'!H47=1,\"■\",IF('checklist huidige situatie'!H47=2,\"□\",IF('checklist huidige situatie'!H47=3,\"?\",IF('checklist huidige situatie'!H47=4,\"x\",IF('checklist huidige situatie'!H47=0,\"/\",\"!?\")))))","v":"/"},"Personeelsleden die zeer lange woon-werkverplaatsingen met de auto maken"]
[null,{"$f":"IF('checklist huidige situatie'!H48=1,\"■\",IF('checklist huidige situatie'!H48=2,\"□\",IF('checklist huidige situatie'!H48=3,\"?\",IF('checklist huidige situatie'!H48=4,\"x\",IF('checklist huidige situatie'!H48=0,\"/\",\"!?\")))))","v":"/"},"Frequent dienstverplaatsingen met de auto"]
[null,{"$f":"IF('checklist huidige situatie'!H49=1,\"■\",IF('checklist huidige situatie'!H49=2,\"□\",IF('checklist huidige situatie'!H49=3,\"?\",IF('checklist huidige situatie'!H49=4,\"x\",IF('checklist huidige situatie'!H49=0,\"/\",\"!?\")))))","v":"/"},"Regelmatig lange dienstverplaatsingen met de auto"]
[null,{"$f":"IF('checklist huidige situatie'!H50=1,\"■\",IF('checklist huidige situatie'!H50=2,\"□\",IF('checklist huidige situatie'!H50=3,\"?\",IF('checklist huidige situatie'!H50=4,\"x\",IF('checklist huidige situatie'!H50=0,\"/\",\"!?\")))))","v":"/"},"Woon-werk- of dienstverplaatsingen met de auto op zeer vroege of heel late uren"]
[null,"R6- risicofactoren vracht"]
[null,{"$f":"IF('checklist huidige situatie'!H52=1,\"■\",IF('checklist huidige situatie'!H52=2,\"□\",IF('checklist huidige situatie'!H52=3,\"?\",IF('checklist huidige situatie'!H52=4,\"x\",IF('checklist huidige situatie'!H52=0,\"/\",\"!?\")))))","v":"/"},"Frequent vrachtwagenleveringen uitvoeren"]
[null,{"$f":"IF('checklist huidige situatie'!H53=1,\"■\",IF('checklist huidige situatie'!H53=2,\"□\",IF('checklist huidige situatie'!H53=3,\"?\",IF('checklist huidige situatie'!H53=4,\"x\",IF('checklist huidige situatie'!H53=0,\"/\",\"!?\")))))","v":"/"},"Vaak leveringen aan het bedrijf"]
[null,{"$f":"IF('checklist huidige situatie'!H54=1,\"■\",IF('checklist huidige situatie'!H54=2,\"□\",IF('checklist huidige situatie'!H54=3,\"?\",IF('checklist huidige situatie'!H54=4,\"x\",IF('checklist huidige situatie'!H54=0,\"/\",\"!?\")))))","v":"/"},"Vrachtwagens maken gebruik van wegen die minder geschikt zijn voor vrachtwagenverkeer\nvb. omdat er een confrontatie is met zachte weggebruikers, onaangepaste infrastructuur …"]
[]
[]
[null,null,"Maatregelen"]
[null,null,"Hierbij krijgt u een overzicht van welke maatregelen betreffende verkeersveiligheid er in uw bedrijf genomen worden en welke er nog kunnen genomen worden."]
[null,"Legende",null,"visie","voet-gangers","fiets","motor / bromfiets","auto","vracht","totaal"]
[null,"■","aanwezig",{"$f":"COUNTIF('checklist huidige situatie'!$H$58:$H$64,$H4)","v":0},{"$f":"COUNTIF('checklist huidige situatie'!$H$66:$H$67,$H4)","v":0},{"$f":"COUNTIF('checklist huidige situatie'!$H$69:$H$73,$H4)","v":0},{"$f":"COUNTIF('checklist huidige situatie'!$H$75:$H$77,$H4)","v":0},{"$f":"COUNTIF('checklist huidige situatie'!$H$79:$H$86,$H4)","v":0},{"$f":"COUNTIF('checklist huidige situatie'!$H$88:$H$92,$H4)","v":0},{"$f":"SUM(D99:I99)","v":0}]
[null,"□","afwezig",{"$f":"COUNTIF('checklist huidige situatie'!$H$58:$H$64,$H5)","v":0},{"$f":"COUNTIF('checklist huidige situatie'!$H$66:$H$67,$H5)","v":0},{"$f":"COUNTIF('checklist huidige situatie'!$H$69:$H$73,$H5)","v":0},{"$f":"COUNTIF('checklist huidige situatie'!$H$75:$H$77,$H5)","v":0},{"$f":"COUNTIF('checklist huidige situatie'!$H$79:$H$86,$H5)","v":0},{"$f":"COUNTIF('checklist huidige situatie'!$H$88:$H$92,$H5)","v":0},{"$f":"SUM(D100:I100)","v":0}]
[null,"?","weet niet",{"$f":"COUNTIF('checklist huidige situatie'!$H$58:$H$64,$H6)","v":0},{"$f":"COUNTIF('checklist huidige situatie'!$H$66:$H$67,$H6)","v":0},{"$f":"COUNTIF('checklist huidige situatie'!$H$69:$H$73,$H6)","v":0},{"$f":"COUNTIF('checklist huidige situatie'!$H$75:$H$77,$H6)","v":0},{"$f":"COUNTIF('checklist huidige situatie'!$H$79:$H$86,$H6)","v":0},{"$f":"COUNTIF('checklist huidige situatie'!$H$88:$H$92,$H6)","v":0},{"$f":"SUM(D101:I101)","v":0}]
[null,"/","niet ingevuld",{"$f":"7-SUM(D99:D101,D103)","v":7},{"$f":"2-SUM(E99:E101,E103)","v":2},{"$f":"5-SUM(F99:F101,F103)","v":5},{"$f":"3-SUM(G99:G101,G103)","v":3},{"$f":"8-SUM(H99:H101,H103)","v":8},{"$f":"5-SUM(I99:I101,I103)","v":5},{"$f":"30-SUM(J99:J101,J103)","v":30}]
[null,"x","niet van toepassing",{"$f":"COUNTIF('checklist huidige situatie'!$H$58:$H$64,$H8)","v":0},{"$f":"COUNTIF('checklist huidige situatie'!$H$66:$H$67,$H8)","v":0},{"$f":"COUNTIF('checklist huidige situatie'!$H$69:$H$73,$H8)","v":0},{"$f":"COUNTIF('checklist huidige situatie'!$H$75:$H$77,$H8)","v":0},{"$f":"COUNTIF('checklist huidige situatie'!$H$79:$H$86,$H8)","v":0},{"$f":"COUNTIF('checklist huidige situatie'!$H$88:$H$92,$H8)","v":0},{"$f":"SUM(D103:I103)","v":0}]
[null,null,null,"visie","voetgangers","fiets","motor / bromfiets","auto","vracht"]
[]
[]
[]
[]
[]
[]
[]
[]
[]
[]
[]
[]
[null,null,"Door middel van symbolen wordt aangegeven \nwelke maatregelen uw bedrijf nog bijkomend kan nemen."]
[]
[null,"M1 - visie en strategie"]
[null,{"$f":"IF('checklist huidige situatie'!H58=1,\"■\",IF('checklist huidige situatie'!H58=2,\"□\",IF('checklist huidige situatie'!H58=3,\"?\",IF('checklist huidige situatie'!H58=4,\"x\",IF('checklist huidige situatie'!H58=0,\"/\",\"!?\")))))","v":"/"},"Opmaak verkeersveiligheidsbeleid of -plan (evt. integratie met Globaal Preventieplan)"]
[null,{"$f":"IF('checklist huidige situatie'!H59=1,\"■\",IF('checklist huidige situatie'!H59=2,\"□\",IF('checklist huidige situatie'!H59=3,\"?\",IF('checklist huidige situatie'!H59=4,\"x\",IF('checklist huidige situatie'!H59=0,\"/\",\"!?\")))))","v":"/"},"Creëren verkeersveiligheidscultuur in het bedrijf (vb. duidelijke regels mbt alcoholgebruik, checken fietsverlichting,...)"]
[null,{"$f":"IF('checklist huidige situatie'!H60=1,\"■\",IF('checklist huidige situatie'!H60=2,\"□\",IF('checklist huidige situatie'!H60=3,\"?\",IF('checklist huidige situatie'!H60=4,\"x\",IF('checklist huidige situatie'!H60=0,\"/\",\"!?\")))))","v":"/"},"Ondertekenen van het European Road Safety Charter"]
[null,{"$f":"IF('checklist huidige situatie'!H61=1,\"■\",IF('checklist huidige situatie'!H61=2,\"□\",IF('checklist huidige situatie'!H61=3,\"?\",IF('checklist huidige situatie'!H61=4,\"x\",IF('checklist huidige situatie'!H61=0,\"/\",\"!?\")))))","v":"/"},"Opstellen en communiceren van gedragscodes i.v.m. veilig rijgedrag"]
[null,{"$f":"IF('checklist huidige situatie'!H62=1,\"■\",IF('checklist huidige situatie'!H62=2,\"□\",IF('checklist huidige situatie'!H62=3,\"?\",IF('checklist huidige situatie'!H62=4,\"x\",IF('checklist huidige situatie'!H62=0,\"/\",\"!?\")))))","v":"/"},"Vermijden van verplaatsingen indien mogelijk (teleconferencing, thuiswerk...)"]
[null,{"$f":"IF('checklist huidige situatie'!H63=1,\"■\",IF('checklist huidige situatie'!H63=2,\"□\",IF('checklist huidige situatie'!H63=3,\"?\",IF('checklist huidige situatie'!H63=4,\"x\",IF('checklist huidige situatie'!H63=0,\"/\",\"!?\")))))","v":"/"},"Aandacht voor de verkeersveiligheid op de eigen site"]
[null,{"$f":"IF('checklist huidige situatie'!H64=1,\"■\",IF('checklist huidige situatie'!H64=2,\"□\",IF('checklist huidige situatie'!H64=3,\"?\",IF('checklist huidige situatie'!H64=4,\"x\",IF('checklist huidige situatie'!H64=0,\"/\",\"!?\")))))","v":"/"},"Gebruik van het openbaar vervoer aanmoedigen"]
[null,"M2 - maatregelen voetgangers"]
[null,{"$f":"IF('checklist huidige situatie'!H66=1,\"■\",IF('checklist huidige situatie'!H66=2,\"□\",IF('checklist huidige situatie'!H66=3,\"?\",IF('checklist huidige situatie'!H66=4,\"x\",IF('checklist huidige situatie'!H66=0,\"/\",\"!?\")))))","v":"/"},"Aandacht voor verkeersveiligheid op belangrijke voetgangersroutes (bv. naar bushalte)"]
[null,{"$f":"IF('checklist huidige situatie'!H67=1,\"■\",IF('checklist huidige situatie'!H67=2,\"□\",IF('checklist huidige situatie'!H67=3,\"?\",IF('checklist huidige situatie'!H67=4,\"x\",IF('checklist huidige situatie'!H67=0,\"/\",\"!?\")))))","v":"/"},"Aandacht voor verkeersgedrag voetgangers (bv. Aandacht voor zichtbaarheid, gebruik zebrapaden, naleven verkeersregels ...)"]
[null,"M3 - maatregelen fiets"]
[null,{"$f":"IF('checklist huidige situatie'!H69=1,\"■\",IF('checklist huidige situatie'!H69=2,\"□\",IF('checklist huidige situatie'!H69=3,\"?\",IF('checklist huidige situatie'!H69=4,\"x\",IF('checklist huidige situatie'!H69=0,\"/\",\"!?\")))))","v":"/"},"Fietscontrole"]
[null,{"$f":"IF('checklist huidige situatie'!H70=1,\"■\",IF('checklist huidige situatie'!H70=2,\"□\",IF('checklist huidige situatie'!H70=3,\"?\",IF('checklist huidige situatie'!H70=4,\"x\",IF('checklist huidige situatie'!H70=0,\"/\",\"!?\")))))","v":"/"},"Fietsattributen voorzien (helm en fluoreflecterend materiaal)"]
[null,{"$f":"IF('checklist huidige situatie'!H71=1,\"■\",IF('checklist huidige situatie'!H71=2,\"□\",IF('checklist huidige situatie'!H71=3,\"?\",IF('checklist huidige situatie'!H71=4,\"x\",IF('checklist huidige situatie'!H71=0,\"/\",\"!?\")))))","v":"/"},"Goede, beveiligde fietsenstalling voorzien"]
[null,{"$f":"IF('checklist huidige situatie'!H72=1,\"■\",IF('checklist huidige situatie'!H72=2,\"□\",IF('checklist huidige situatie'!H72=3,\"?\",IF('checklist huidige situatie'!H72=4,\"x\",IF('checklist huidige situatie'!H72=0,\"/\",\"!?\")))))","v":"/"},"Fietsrouteadvies geven aan werknemers (promoten veiligste routes)"]
[null,{"$f":"IF('checklist huidige situatie'!H73=1,\"■\",IF('checklist huidige situatie'!H73=2,\"□\",IF('checklist huidige situatie'!H73=3,\"?\",IF('checklist huidige situatie'!H73=4,\"x\",IF('checklist huidige situatie'!H73=0,\"/\",\"!?\")))))","v":"/"},"Organiseren van een cursus veilig fietsen"]
[null,"M4 - maatregelen motor en bromfiets"]
[null,{"$f":"IF('checklist huidige situatie'!H75=1,\"■\",IF('checklist huidige situatie'!H75=2,\"□\",IF('checklist huidige situatie'!H75=3,\"?\",IF('checklist huidige situatie'!H75=4,\"x\",IF('checklist huidige situatie'!H75=0,\"/\",\"!?\")))))","v":"/"},"Organisatie opleiding defensief rijden voor motorrijders"]
[null,{"$f":"IF('checklist huidige situatie'!H76=1,\"■\",IF('checklist huidige situatie'!H76=2,\"□\",IF('checklist huidige situatie'!H76=3,\"?\",IF('checklist huidige situatie'!H76=4,\"x\",IF('checklist huidige situatie'!H76=0,\"/\",\"!?\")))))","v":"/"},"Stimuleren helmdracht en gebruik integraalhelm (die het hoofd helemaal omsluit)"]
[null,{"$f":"IF('checklist huidige situatie'!H77=1,\"■\",IF('checklist huidige situatie'!H77=2,\"□\",IF('checklist huidige situatie'!H77=3,\"?\",IF('checklist huidige situatie'!H77=4,\"x\",IF('checklist huidige situatie'!H77=0,\"/\",\"!?\")))))","v":"/"},"Aandacht voor kledij van motorrijders en bromfietsers"]
[null,"M5 - maatregelen auto"]
[null,{"$f":"IF('checklist huidige situatie'!H79=1,\"■\",IF('checklist huidige situatie'!H79=2,\"□\",IF('checklist huidige situatie'!H79=3,\"?\",IF('checklist huidige situatie'!H79=4,\"x\",IF('checklist huidige situatie'!H79=0,\"/\",\"!?\")))))","v":"/"},"Opstellen gedragscode voor autobestuurders"]
[null,{"$f":"IF('checklist huidige situatie'!H80=1,\"■\",IF('checklist huidige situatie'!H80=2,\"□\",IF('checklist huidige situatie'!H80=3,\"?\",IF('checklist huidige situatie'!H80=4,\"x\",IF('checklist huidige situatie'!H80=0,\"/\",\"!?\")))))","v":"/"},"Rijgedrag van nieuwe werknemers opvolgen"]
[null,{"$f":"IF('checklist huidige situatie'!H81=1,\"■\",IF('checklist huidige situatie'!H81=2,\"□\",IF('checklist huidige situatie'!H81=3,\"?\",IF('checklist huidige situatie'!H81=4,\"x\",IF('checklist huidige situatie'!H81=0,\"/\",\"!?\")))))","v":"/"},"Telefoneren (ook handsfree) en rijden ontmoedigen. Kits voor handenvrij bellen voorzien in bedrijfs- en dienstwagens."]
[null,{"$f":"IF('checklist huidige situatie'!H82=1,\"■\",IF('checklist huidige situatie'!H82=2,\"□\",IF('checklist huidige situatie'!H82=3,\"?\",IF('checklist huidige situatie'!H82=4,\"x\",IF('checklist huidige situatie'!H82=0,\"/\",\"!?\")))))","v":"/"},"Medewerkers die verkeersovertreding begaan responsabiliseren"]
[null,{"$f":"IF('checklist huidige situatie'!H83=1,\"■\",IF('checklist huidige situatie'!H83=2,\"□\",IF('checklist huidige situatie'!H83=3,\"?\",IF('checklist huidige situatie'!H83=4,\"x\",IF('checklist huidige situatie'!H83=0,\"/\",\"!?\")))))","v":"/"},"Aandacht voor rijden-onder-invloed bij bedrijfsevenementen"]
[null,{"$f":"IF('checklist huidige situatie'!H84=1,\"■\",IF('checklist huidige situatie'!H84=2,\"□\",IF('checklist huidige situatie'!H84=3,\"?\",IF('checklist huidige situatie'!H84=4,\"x\",IF('checklist huidige situatie'!H84=0,\"/\",\"!?\")))))","v":"/"},"Aandacht voor verkeersveiligheid in fleet management (vb. nieuwe technologieën: Intelligent Speed Adaptation (ISA), regelmatig onderhoud, voertuigen met voetganger-fietservriendelijke autofronten, winterbanden ...)"]
[null,{"$f":"IF('checklist huidige situatie'!H85=1,\"■\",IF('checklist huidige situatie'!H85=2,\"□\",IF('checklist huidige situatie'!H85=3,\"?\",IF('checklist huidige situatie'!H85=4,\"x\",IF('checklist huidige situatie'!H85=0,\"/\",\"!?\")))))","v":"/"},"Organiseren cursus defensief rijden voor automobilisten"]
[null,{"$f":"IF('checklist huidige situatie'!H86=1,\"■\",IF('checklist huidige situatie'!H86=2,\"□\",IF('checklist huidige situatie'!H86=3,\"?\",IF('checklist huidige situatie'!H86=4,\"x\",IF('checklist huidige situatie'!H86=0,\"/\",\"!?\")))))","v":"/"},"Aanbieden overnachting ipv werknemers een lange, late rit naar huis laten maken"]
[null,"M6 - maatregelen vracht"]
[null,{"$f":"IF('checklist huidige situatie'!H88=1,\"■\",IF('checklist huidige situatie'!H88=2,\"□\",IF('checklist huidige situatie'!H88=3,\"?\",IF('checklist huidige situatie'!H88=4,\"x\",IF('checklist huidige situatie'!H88=0,\"/\",\"!?\")))))","v":"/"},"Gedragscode voor vrachtwagenbestuurders opstellen"]
[null,{"$f":"IF('checklist huidige situatie'!H89=1,\"■\",IF('checklist huidige situatie'!H89=2,\"□\",IF('checklist huidige situatie'!H89=3,\"?\",IF('checklist huidige situatie'!H89=4,\"x\",IF('checklist huidige situatie'!H89=0,\"/\",\"!?\")))))","v":"/"},"Vrachtwagens voorzien van laatste technische ontwikkelingen die veiligheid verbeteren"]
[null,{"$f":"IF('checklist huidige situatie'!H90=1,\"■\",IF('checklist huidige situatie'!H90=2,\"□\",IF('checklist huidige situatie'!H90=3,\"?\",IF('checklist huidige situatie'!H90=4,\"x\",IF('checklist huidige situatie'!H90=0,\"/\",\"!?\")))))","v":"/"},"Rijplanning niet overladen"]
[null,{"$f":"IF('checklist huidige situatie'!H91=1,\"■\",IF('checklist huidige situatie'!H91=2,\"□\",IF('checklist huidige situatie'!H91=3,\"?\",IF('checklist huidige situatie'!H91=4,\"x\",IF('checklist huidige situatie'!H91=0,\"/\",\"!?\")))))","v":"/"},"Ondertekenen van het Truckveilig-charter op www.truckveilig.be"]
[null,{"$f":"IF('checklist huidige situatie'!H92=1,\"■\",IF('checklist huidige situatie'!H92=2,\"□\",IF('checklist huidige situatie'!H92=3,\"?\",IF('checklist huidige situatie'!H92=4,\"x\",IF('checklist huidige situatie'!H92=0,\"/\",\"!?\")))))","v":"/"},"Stimuleren en faciliteren om rij- en rusttijden te respecteren"]